[Event "Croatian 1A League 2022"]
[Site "Porec"]
[Date "2022.09.28"]
[Round "5.7"]
[White "Kadric, Denis"]
[Black "Cheparinov, Ivan"]
[Result "1/2-1/2"]
[ECO "B78"]
[WhiteElo "2561"]
[BlackElo "2686"]
[Annotator "TA"]
[PlyCount "60"]
[EventDate "2022.09.24"]
[EventType "team-tourn"]
[EventCountry "CRO"]
[SourceTitle "playchess.com"]
[Source "ChessBase"]
[SourceQuality "1"]
[TimeControl "40/5400+30:1800+30"]

{[%evp 28,60,27,12,32,0,17,9,16,0,0,0,0,0,0,0,0,0,0,0,0,0,0,0,0,-13,0,0,0,0,22,0,0,0,0]} 1. e4 {[%emt 0:00:03]} c5 {[%emt 0:00:04]} 2. Nc3 {[%emt 0:00:04]} Nc6 {[%emt 0:00:10]} 3. Nge2 {[%emt 0:00:06]} g6 {[%emt 0:00:17]} 4. d4 {[%emt 0:00:08]} cxd4 {[%emt 0:00:04]} 5. Nxd4 {[%emt 0:00:01]} Bg7 {[%emt 0:00:07]} 6. Be3 {[%emt 0:00:08]} Nf6 {[%emt 0:00:06]} 7. Bc4 {[%emt 0:00:15]} O-O {[%emt 0:00:06]} 8. Bb3 {[%emt 0:00:02]} d6 {[%emt 0:00:51]} 9. f3 {[%emt 0:00:05]} Bd7 {[%emt 0:00:05]} 10. h4 {[%emt 0:00:11]} h5 {[%emt 0:00:08]} 11. Qd2 {[%emt 0:00:24]} Rc8 {[%emt 0:00:05]} 12. O-O-O {[%emt 0:04:18]} Ne5 {[%emt 0:00:11]} 13. Kb1 {[%emt 0:00:06]} Nc4 {[%emt 0:00:38]} 14. Bxc4 {[%emt 0:00:04]} Rxc4 {[%emt 0:00:06]} 15. b3 {[%emt 0:01:04]} Rc8 {[%emt 0:00:54] B78: Sicilian Dragon: Yugoslav Attack, 9 Bc4 Bd7 10 0-0-0 Rc8.} 16. Nde2 {[%emt 0:00:04]} b5 {[%emt 0:03:13] The position is equal.} 17. Bh6 {[%emt 0:00:17]} Qa5 {[%emt 0:01:39] [#] And now ...Bxh6 would win.} 18. Bxg7 {[%emt 0:04:29]} (18. Nd5 {is interesting.} Qxd2 19. Nxe7+ Kh7 20. Bxd2 Rce8 21. Bf4) 18... Kxg7 {[%emt 0:03:27]} 19. Nd5 {[%emt 0:00:32]} Qxd2 {[%emt 0:00:15]} 20. Rxd2 {[%emt 0:00:02] [#]} Nxd5 $146 {[%emt 0:03:37]} ({Predecessor:} 20... Ng8 21. Rhd1 Bc6 22. Nd4 Bxd5 23. exd5 a6 24. Nc6 e5 25. c4 Rfe8 26. cxb5 axb5 {1-0 (52) Poehlmann,E-Sciupokas,A ICCF corr 1987}) 21. exd5 {[%emt 0:00:57]} Rc5 {[%emt 0:03:06]} 22. Kb2 {[%emt 0:02:53]} Rfc8 {[%emt 0:00:52]} 23. c3 {[%emt 0:06:03]} a5 {[%emt 0:09:26][%cal Ba7a5,Ba5a4][%mdl 32]} 24. Re1 {[%emt 0:02:56]} a4 {[%emt 0:06:51]} 25. Rd4 {[%emt 0:00:08]} R5c7 {[%emt 0:00:46]} 26. Rb4 {[%emt 0:07:42]} Rc5 {[%emt 0:10:34]} 27. Rd1 {[%emt 0:02:44]} Kf8 {[%emt 0:01:58]} 28. Re4 {[%emt 0:05:26]} Bf5 {[%emt 0:00:44]} 29. Rb4 {[%emt 0:01:45]} (29. b4 $5 {[%cal Rb4c5]} Rc4 30. Rxc4 Rxc4 31. Nd4 $11) 29... Bd7 {[%emt 0:00:06]} 30. Re4 {[%emt 0:01:12]} Bf5 {[%emt 0:00:05] An even fight not without its subleties.  Weighted Error Value: White=0.07 (flawless) /Black=0.06 (flawless)} 1/2-1/2

[Event "Croatian 1A League 2022"]
[Site "Porec"]
[Date "2022.09.28"]
[Round "5.8"]
[White "Hracek, Zbynek"]
[Black "Saric, Ibro"]
[Result "1/2-1/2"]
[ECO "C43"]
[WhiteElo "2556"]
[BlackElo "2542"]
[Annotator "TA"]
[PlyCount "41"]
[EventDate "2022.09.24"]
[EventType "team-tourn"]
[EventCountry "CRO"]
[SourceTitle "playchess.com"]
[Source "ChessBase"]
[SourceQuality "1"]
[TimeControl "40/5400+30:1800+30"]

{[%evp 9,41,14,18,4,17,0,18,23,19,18,21,26,35,14,14,0,0,-15,-4,-21,0,-12,0,-14,0,0,0,0,0,0,0,0,0,0]} 1. e4 {[%emt 0:00:03]} e5 {[%emt 0:00:23]} 2. Nf3 {[%emt 0:00:08]} Nf6 {[%emt 0:00:30]} 3. d4 {[%emt 0:00:11]} Nxe4 {[%emt 0:00:14]} 4. dxe5 {[%emt 0:00:09]} d5 {[%emt 0:00:28]} 5. Nbd2 {[%emt 0:00:06]} Nxd2 {[%emt 0:05:27]} 6. Bxd2 {[%emt 0:00:13] C43: Petroff Defence: 3 d4.} Be7 {[%emt 0:00:38]} 7. Bd3 {[%emt 0:01:11]} Na6 {[%emt 0:03:07][%cal Bb8a6,Ba6c5,Bc5e6][%mdl 32]} 8. c3 {[%emt 0:02:49]} Nc5 {[%emt 0:01:03]} 9. Bc2 {[%emt 0:00:02]} Bg4 {[%emt 0:02:17] [#]} 10. Be3 $146 {[%emt 0:06:25]} ({Predecessor:} 10. Qe2 Qd7 11. h3 Bh5 12. g4 Bg6 13. Nd4 Bxc2 14. Nxc2 O-O-O 15. O-O-O Qa4 16. Kb1 {1-0 (32) Kosintseva,N (2533)-Nebolsina,V (2310) Moscow 2010}) 10... Qd7 {[%emt 0:11:53]} 11. Qd4 {[%emt 0:14:12]} Bh5 {[%emt 0:14:20] The position is equal.} 12. Rd1 {[%emt 0:04:04]} c6 {[%emt 0:03:04]} 13. O-O {[%emt 0:25:00]} Ne6 {[%emt 0:04:07]} 14. Qd2 {[%emt 0:00:44]} Qc7 {[%emt 0:03:09]} 15. Rfe1 {[%emt 0:00:10]} Bxf3 {[%emt 0:13:53]} 16. gxf3 {[%emt 0:00:04][%cal Bg2f3,Bf3f4,Bf4f5][%mdl 32]} Qxe5 {[%emt 0:02:34]} 17. f4 $1 {[%emt 0:01:13]} Qh5 {[%emt 0:02:30]} 18. f5 {[%emt 0:00:44]} Qg4+ {[%emt 0:01:09]} 19. Kh1 {[%emt 0:00:22]} Qf3+ {[%emt 0:00:27]} 20. Kg1 {[%emt 0:00:04]} Qg4+ {[%emt 0:00:22]} 21. Kh1 {[%emt 0:00:04] A balanced but interesting game.  Weighted Error Value: White=0.05 (flawless) /Black=0.04 (flawless)} 1/2-1/2

[Event "Croatian 1A League 2022"]
[Site "Porec"]
[Date "2022.09.28"]
[Round "5.9"]
[White "Saric, Ante"]
[Black "Leventic, Ivan"]
[Result "1/2-1/2"]
[ECO "A33"]
[WhiteElo "2510"]
[BlackElo "2384"]
[Annotator "TA"]
[PlyCount "57"]
[EventDate "2022.09.24"]
[EventType "team-tourn"]
[EventCountry "CRO"]
[SourceTitle "playchess.com"]
[Source "ChessBase"]
[SourceQuality "1"]
[TimeControl "40/5400+30:1800+30"]

{[%evp 10,57,15,19,23,35,44,35,45,32,60,50,58,52,61,50,58,61,64,34,41,47,51,0,15,0,0,0,0,0,0,-103,-94,-94,-89,-102,-104,-90,-90,-94,-98,-75,-93,-89,-99,-118,0,-43,-32,-47]} 1. c4 {[%emt 0:00:05]} c5 {[%emt 0:01:00]} 2. Nf3 {[%emt 0:00:06]} Nc6 {[%emt 0:00:37]} 3. d4 {[%emt 0:00:08]} cxd4 {[%emt 0:00:15]} 4. Nxd4 {[%emt 0:00:07]} Nf6 {[%emt 0:00:18]} 5. Nc3 {[%emt 0:00:09]} e6 {[%emt 0:00:23]} 6. Bf4 {[%emt 0:00:07]} Nxd4 {[%emt 0:03:48] A33: Symmetrical English: 2 Nf3 Nf6 3 d4 cxd4 4 Nxd4 e6 5 Nc3 Nc6.} 7. Qxd4 {[%emt 0:00:07]} b6 {[%emt 0:00:13]} 8. e4 {[%emt 0:06:51]} Bc5 {[%emt 0:07:32] White is slightly better.} 9. Qd2 {[%emt 0:04:13] [#]} d6 $146 {[%emt 0:11:18]} ({Predecessor:} 9... O-O 10. e5 Ng4 11. Ne4 f6 12. Nxc5 bxc5 13. exf6 Nxf6 14. Bd3 e5 15. Bg3 Bb7 {½-½ (52) Schmidt,J (2058)-Mueller,H (2136) GER email 2014}) 10. O-O-O {[%emt 0:10:22]} Bb7 {[%emt 0:05:22]} 11. f3 {[%emt 0:06:46]} e5 {[%emt 0:07:11]} 12. Be3 {[%emt 0:04:40]} O-O {[%emt 0:11:10]} 13. Kb1 {[%emt 0:10:09]} a6 {[%emt 0:11:45]} 14. Na4 {[%emt 0:08:30]} Bxe3 {[%emt 0:04:37]} 15. Qxe3 {[%emt 0:00:07]} Rb8 {[%emt 0:00:12][%cal Ob6b5]} 16. Qd2 {[%emt 0:06:30]} b5 {[%emt 0:05:12]} 17. Nc3 {[%emt 0:04:42]} b4 {[%emt 0:02:41]} 18. Ne2 {[%emt 0:00:29]} Qa5 {[%emt 0:03:21]} 19. Ng3 {[%emt 0:01:04]} Rfd8 {[%emt 0:02:57]} 20. Nf5 {[%emt 0:05:39] [#]} (20. Bd3 $11) 20... Bxe4+ $1 $17 {[%emt 0:00:42][%mdl 512]} 21. fxe4 {[%emt 0:10:23]} Nxe4 {[%emt 0:00:12]} 22. Qc2 {[%emt 0:06:36] [#]} Nc3+ {[%emt 0:00:18][%mdl 512]} 23. bxc3 {[%emt 0:00:09]} bxc3+ {[%emt 0:00:11]} 24. Ka1 {[%emt 0:00:02] Strongly threatening Ne7+.} Rb2 {[%emt 0:05:21]} 25. Qxb2 {[%emt 0:00:02]} cxb2+ {[%emt 0:00:08]} 26. Kb1 {[%emt 0:00:01]} Kf8 {[%emt 0:03:15]} 27. Ne3 {[%emt 0:05:55] Inhibits d5.} Rb8 {[%emt 0:01:23]} (27... Qc5 $17 28. Nd5 f5) 28. Bd3 {[%emt 0:01:18]} g6 {[%emt 0:02:23]} 29. Bc2 {[%emt 0:01:34] Weighted Error Value: White=0.17 (very precise) /Black=0.13 (very precise)} 1/2-1/2

[Event "Croatian 1A League 2022"]
[Site "Porec"]
[Date "2022.09.28"]
[Round "5.10"]
[White "Zivkovic, Vjekoslav"]
[Black "Plenca, Julijan"]
[Result "1/2-1/2"]
[ECO "C54"]
[WhiteElo "2364"]
[BlackElo "2447"]
[Annotator "TA"]
[PlyCount "130"]
[EventDate "2022.09.24"]
[EventType "team-tourn"]
[EventCountry "CRO"]
[SourceTitle "playchess.com"]
[Source "ChessBase"]
[SourceQuality "1"]
[TimeControl "40/5400+30:1800+30"]

{[%evp 14,130,16,8,20,20,122,18,86,48,102,97,200,75,66,71,86,45,30,-29,-35,-30,-29,-22,-29,-27,-33,-94,-92,-91,-39,-43,0,0,-36,-29,-30,-56,-77,-61,-27,-17,0,-10,34,25,117,99,91,140,162,157,337,327,377,377,622,615,602,463,457,355,345,344,548,19,9,-16,-16,-16,-16,-16,0,0,0,-6,-7,-16,-15,-15,0,-22,-5,-8,-5,-8,-8,-15,0,0,0,0,0,0,0,-7,-7,-7,-7,-7,-7,-7,-7,-7,-7,-15,-15,-15,-15,-15,0,-15,-7,-15,0,-22,-22,-22,-22]} 1. e4 {[%emt 0:00:02]} e5 {[%emt 0:00:11]} 2. Nf3 {[%emt 0:00:09]} Nc6 {[%emt 0:00:07]} 3. Bc4 {[%emt 0:03:05]} Bc5 {[%emt 0:00:06]} 4. d3 {[%emt 0:00:17]} Nf6 {[%emt 0:00:23]} 5. Bg5 {[%emt 0:00:34][%cal Bc1g5,Bg5h4,Bh4g3][%mdl 32]} h6 {[%emt 0:00:31]} 6. Bh4 {[%emt 0:00:04]} g5 {[%emt 0:01:10]} 7. Bg3 {[%emt 0:00:04]} d6 {[%emt 0:00:06]} 8. c3 $1 {[%emt 0:04:10][%mdl 4] is more profitable than 8.h3 at the moment.} Bb6 {[%emt 0:01:29] C54: Giuoco Piano: 4 c3 Nf6, main lines with 5 d4 and 5 d3.} 9. Nbd2 {[%emt 0:01:10] [#]} g4 $146 {[%emt 0:03:07]} (9... O-O $11) ({Predecessor:} 9... Nh7 10. b4 Qf6 11. Bb3 h5 12. h4 g4 13. Ng1 Be6 14. Ne2 a5 15. b5 Ne7 16. Bxe6 fxe6 {1-0 (53) Demchenko,A (2654)-Batsiashvili,N (2491) Chess.com INT 2022}) 10. Nh4 {[%emt 0:04:53]} (10. Bh4 $16) 10... Ne7 {[%emt 0:03:11]} (10... Nh5 $11 {keeps the balance.}) 11. Qb3 {[%emt 0:26:59]} Rf8 {[%emt 0:01:21]} ({Black should play} 11... O-O $14) 12. O-O-O {[%emt 0:02:15][%cal Od3d4] d4! is the strong threat.} c6 {[%emt 0:01:04]} (12... Nc6 $16 {is a better defense.}) 13. Rhe1 {[%emt 0:02:58]} (13. d4 $1 $18 {[%cal Rd4e5] is the precise move to win.} Qc7 14. Rhe1) 13... Nh5 $16 {[%emt 0:01:47]} 14. d4 {[%emt 0:00:06] White is more active.} Nxg3 {[%emt 0:05:44]} 15. hxg3 {[%emt 0:00:31]} exd4 {[%emt 0:02:26]} 16. Nf5 {[%emt 0:00:59]} (16. cxd4 $142 Qc7 17. Qd3) 16... Nxf5 $11 {[%emt 0:03:41]} (16... Bxf5 17. exf5 Kd7 18. Bxf7 $14) 17. exf5+ {[%emt 0:00:09]} Kd7 {[%emt 0:00:02]} 18. Bxf7 {[%emt 0:00:53]} Kc7 {[%emt 0:00:43]} 19. Be6 {[%emt 0:04:24]} Qg5 {[%emt 0:01:42]} 20. Kb1 {[%emt 0:02:33]} (20. cxd4 $15 Bxe6 21. Qxe6) 20... Bxe6 $17 {[%emt 0:01:51]} 21. fxe6 {[%emt 0:00:29]} d5 {[%emt 0:02:04]} (21... Rae8 $17 22. cxd4 (22. Ne4 $2 Qf5 $19) 22... d5) 22. f4 {[%emt 0:06:19]} Qf5+ {[%emt 0:01:38]} 23. Ka1 {[%emt 0:00:23]} Rae8 {[%emt 0:00:48]} 24. Re5 {[%emt 0:02:17]} ({Don't play} 24. e7 Rf7 25. cxd4 Qf6 $17) 24... Qg6 {[%emt 0:00:51]} 25. Rde1 {[%emt 0:07:29]} Qd3 {[%emt 0:01:18]} 26. Nf1 {[%emt 0:01:55]} Rf6 {[%emt 0:02:07]} 27. Rd1 $1 {[%emt 0:01:03]} Qa6 {[%emt 0:01:36]} 28. f5 {[%emt 0:02:12][%cal Bf4f5,Bf5f6,Bf6f7][%mdl 32]} dxc3 {[%emt 0:04:14]} 29. Qxc3 {[%emt 0:00:25] Hoping for Rexd5.} Kb8 {[%emt 0:05:15] [#]} (29... Qc4 $1 $11) 30. Rexd5 $1 $16 {[%emt 0:06:29][%mdl 512]} Rfxe6 {[%emt 0:00:38]} 31. Rd7 $1 {[%emt 0:06:19]} Re4 {[%emt 0:04:30] [#]} 32. f6 $1 {[%emt 0:01:20]} Ba5 $2 {[%emt 0:07:54]} (32... Qe2 $16 {was worth a try.}) 33. Qc1 {[%emt 0:05:21]} Rc8 {[%emt 0:02:31]} 34. f7 {[%emt 0:01:52] Threatens to win with Nd2.} c5 $2 {[%emt 0:02:34]} (34... Qc4 35. Qxh6 Bb4) 35. Nd2 $18 {[%emt 0:02:36][%cal Bf1d2,Bd2b1,Bb1c3][%mdl 32]} ({Weaker is} 35. Rd8 Bxd8 36. f8=Q Bg5 37. Qcxc5 Rxf8 38. Qxf8+ Kc7 $11) 35... Ra4 {[%emt 0:01:19][%cal Oa4a2] aiming for ...Rxa2+!} 36. a3 {[%emt 0:00:27]} Qe6 {[%emt 0:01:11] [#]} 37. Nb1 $1 {[%emt 0:00:24] Strongly threatening R1d6.} Rc4 {[%emt 0:01:35]} 38. Nc3 {[%emt 0:00:19]} a6 {[%emt 0:02:15]} (38... Bc7 $142 39. R1d3 Rd4 40. Rxc7 Kxc7) 39. Qc2 $2 {[%emt 0:02:51]} (39. R1d6 $18 Qf5 40. Re7) 39... Rd4 $1 $132 {[%emt 0:00:59][%mdl 2048] Black is not keeping still. The position is equal.} 40. R1xd4 {[%emt 0:00:00]} (40. R7xd4 {seems wilder.} cxd4 41. Rf1 dxc3 42. f8=Q) 40... cxd4 {[%emt 0:00:00]} 41. Rxd4 {[%emt 0:01:07] Black must now prevent Qf2.} Qxf7 {[%emt 0:00:20]} 42. Rxg4 {[%emt 0:14:24]} Bxc3 {[%emt 0:00:54]} 43. bxc3 {[%emt 0:00:05][%mdl 4096] Endgame KQR-KQR} Rc6 {[%emt 0:01:35]} 44. Rb4 {[%emt 0:00:54]} Qg7 {[%emt 0:00:46][%csl LRc3,LRg3]} 45. Qb2 {[%emt 0:02:36]} Ka8 {[%emt 0:01:38][%mdl 1024] Black has compensation.} 46. Ka2 {[%emt 0:04:51]} Qf7+ {[%emt 0:01:04]} 47. Ka1 {[%emt 0:04:29]} (47. Qb3 $5 {[%cal Rb3f7]} Qd7 48. g4 $11) 47... Re6 {[%emt 0:00:31]} 48. Qd2 {[%emt 0:00:58]} Qe7 {[%emt 0:00:37]} 49. Qd5 {[%emt 0:04:37]} Re2 {[%emt 0:01:55]} 50. Qd4 {[%emt 0:01:04]} Re1+ {[%emt 0:01:18]} 51. Ka2 $1 {[%emt 0:00:16]} Qe6+ {[%emt 0:00:18]} 52. c4 {[%emt 0:00:30]} Re2+ {[%emt 0:01:10]} 53. Rb2 {[%emt 0:00:04]} Re4 {[%emt 0:00:12]} 54. Qd5 {[%emt 0:00:24]} Qxd5 {[%emt 0:01:46]} 55. cxd5 {[%emt 0:00:01] KR-KR} Rd4 {[%emt 0:00:11]} 56. Rb6 {[%emt 0:00:17]} Rxd5 {[%emt 0:00:17]} 57. Rxh6 {[%emt 0:00:01]} Rd2+ {[%emt 0:01:23]} 58. Kb3 {[%emt 0:01:14]} Rd3+ {[%emt 0:00:06]} 59. Kb2 {[%emt 0:02:10]} Rxg3 {[%emt 0:00:06]} 60. Rh2 {[%emt 0:00:35]} Ka7 {[%emt 0:00:16]} 61. Ka2 {[%emt 0:00:06]} Kb6 {[%emt 0:00:10]} 62. Kb2 {[%emt 0:00:04]} Ka5 {[%emt 0:00:06]} 63. Ka2 {[%emt 0:01:30]} b5 {[%emt 0:00:05]} 64. Rh6 {[%emt 0:00:19]} Rxg2+ {[%emt 0:00:07]} 65. Kb3 {[%emt 0:00:02]} Rg3+ {[%emt 0:00:35] Black escapes into a draw.  Weighted Error Value: White=0.21 (precise) /Black=0.30} 1/2-1/2

[Event "Croatian 1A League 2022"]
[Site "Porec"]
[Date "2022.09.28"]
[Round "5.11"]
[White "Plenca, Jadranko"]
[Black "Medak, Bojan"]
[Result "1/2-1/2"]
[ECO "C42"]
[WhiteElo "2412"]
[BlackElo "2353"]
[Annotator "TA"]
[PlyCount "32"]
[EventDate "2022.09.24"]
[EventType "team-tourn"]
[EventCountry "CRO"]
[SourceTitle "playchess.com"]
[Source "ChessBase"]
[SourceQuality "1"]
[TimeControl "40/5400+30:1800+30"]

{[%evp 21,32,27,16,0,18,-7,0,0,0,0,47,39,35]} 1. e4 {[%emt 0:04:55]} e5 {[%emt 0:00:18]} 2. Nf3 {[%emt 0:00:44]} Nf6 {[%emt 0:00:14]} 3. Nxe5 {[%emt 0:02:24]} d6 {[%emt 0:00:16]} 4. Nf3 {[%emt 0:00:06]} Nxe4 {[%emt 0:00:09]} 5. Nc3 {[%emt 0:00:09]} Nxc3 {[%emt 0:00:14]} 6. dxc3 {[%emt 0:00:05]} Be7 {[%emt 0:00:14]} 7. Be3 {[%emt 0:00:40]} Nc6 {[%emt 0:01:20]} 8. Qd2 {[%emt 0:00:19]} Be6 {[%emt 0:03:29]} 9. O-O-O {[%emt 0:00:53]} Qd7 {[%emt 0:00:34]} 10. Ng5 {[%emt 0:01:17]} Bxg5 {[%emt 0:01:43]} 11. Bxg5 {[%emt 0:00:06]} O-O {[%emt 0:08:52]} 12. Kb1 {[%emt 0:11:14] [#] C42: Petroff Defence: 3 Nxe5 and unusual White 3rd moves.} Rfe8 $146 {[%emt 0:04:39]} ({Predecessor:} 12... Rae8 13. f3 Ne5 14. h4 Bf5 15. h5 h6 16. Bf4 Bh7 17. Be2 f6 18. g4 Kh8 {0-1 (63) Martinez Alcantara,J (2620)-Ter Sahakyan,S (2640) Chess.com INT 2021}) 13. h4 {[%emt 0:07:39]} f6 {[%emt 0:05:29]} 14. Bf4 {[%emt 0:03:01]} Ne5 {[%emt 0:06:20]} 15. Be2 {[%emt 0:16:02]} Qf7 {[%emt 0:07:22]} (15... Nc4 $11 16. Qc1 Qb5) 16. b3 $14 {[%emt 0:06:45]} a5 {[%emt 0:02:46] Black did not feel at home in the position after the opening.  Weighted Error Value: White=0.08 (flawless) /Black=0.14 (very precise)} 1/2-1/2

[Event "Croatian 1A League 2022"]
[Site "Porec"]
[Date "2022.09.28"]
[Round "5.12"]
[White "Mrkonjic, Nenad"]
[Black "Cotic, Borna"]
[Result "1/2-1/2"]
[ECO "D37"]
[WhiteElo "2347"]
[BlackElo "2133"]
[Annotator "TA"]
[PlyCount "112"]
[EventDate "2022.09.24"]
[EventType "team-tourn"]
[EventCountry "CRO"]
[SourceTitle "playchess.com"]
[Source "ChessBase"]
[SourceQuality "1"]
[TimeControl "40/5400+30:1800+30"]

{[%evp 12,112,11,12,22,39,35,28,30,34,39,27,26,28,43,42,41,35,72,0,48,40,41,31,50,34,48,43,43,38,43,43,58,27,31,32,25,19,17,13,25,11,6,0,0,-34,-39,-31,-35,-59,-56,-56,-58,-63,-37,-37,-37,-37,-30,-20,0,-76,-76,-64,-63,-76,-76,-76,-76,-83,-75,-100,-37,-37,-37,-37,-37,-37,-37,-47,-47,-74,0,-37,-29,-63,-63,-63,-63,-78,-37,-37,-37,-37,-37,-37,-37,-37,0,-37,0,-37,0]} 1. d4 {[%emt 0:00:03]} d5 {[%emt 0:05:13]} 2. c4 {[%emt 0:00:58]} e6 {[%emt 0:00:08]} 3. Nc3 {[%emt 0:00:35]} Nf6 {[%emt 0:00:16]} 4. Nf3 {[%emt 0:01:06]} Be7 {[%emt 0:01:09]} 5. Bf4 {[%emt 0:02:23]} O-O {[%emt 0:00:37]} 6. e3 {[%emt 0:00:00]} Nbd7 {[%emt 0:00:18]} 7. Be2 {[%emt 0:01:03]} c5 {[%emt 0:08:11] D37: Queen's Gambit Declined: 5 Bf4.} 8. cxd5 {[%emt 0:03:13]} Nxd5 {[%emt 0:00:19]} 9. Nxd5 {[%emt 0:07:45]} exd5 {[%emt 0:00:02] White has an edge.} 10. O-O {[%emt 0:00:25]} a6 {[%emt 0:26:00]} 11. dxc5 {[%emt 0:09:51]} Nxc5 {[%emt 0:00:00]} 12. Be5 {[%emt 0:00:06]} Bf5 {[%emt 0:05:50]} 13. Rc1 {[%emt 0:05:40]} Rc8 {[%emt 0:07:44]} 14. Nd4 {[%emt 0:16:58]} Bd7 {[%emt 0:30:12] [#]} 15. Nf3 $146 {[%emt 0:16:02] White has more active pieces.} (15. Bf3 $5 {[%cal Rf3d5]}) ({Predecessor:} 15. Bf3 Ne4 16. Rxc8 Bxc8 17. Qc2 Ng5 18. Be2 Re8 19. Rc1 Bf8 20. Qc7 Ne4 21. Qxd8 Rxd8 22. Rc7 {½-½ (54) Girya,O (2437)-Khotenashvili,B (2512) Belgrade 2013}) 15... Bf5 {[%emt 0:01:34]} 16. h3 {[%emt 0:00:59]} Re8 {[%emt 0:02:21]} 17. Qd4 {[%emt 0:03:30]} Ne6 {[%emt 0:00:55]} 18. Qd2 {[%emt 0:00:25]} Be4 {[%emt 0:02:41]} 19. Rxc8 {[%emt 0:01:04]} Qxc8 {[%emt 0:00:01]} 20. Rc1 {[%emt 0:00:13]} Qd7 {[%emt 0:00:16]} 21. Nd4 {[%emt 0:00:33]} Rc8 {[%emt 0:00:16]} 22. Bg4 {[%emt 0:03:16]} Rxc1+ {[%emt 0:00:04]} 23. Qxc1 {[%emt 0:00:12]} Nxd4 {[%emt 0:00:27]} 24. Bxd4 {[%emt 0:01:06]} Qc6 {[%emt 0:00:31]} 25. Qxc6 {[%emt 0:08:02]} bxc6 $11 {[%emt 0:00:01][%mdl 4096] Endgame KBB-KBB} 26. Be2 {[%emt 0:00:15]} a5 {[%emt 0:00:59]} 27. Bb6 {[%emt 0:01:25]} a4 {[%emt 0:00:45]} 28. Bd1 {[%emt 0:06:06]} a3 {[%emt 0:00:33]} 29. bxa3 {[%emt 0:00:36]} Bxa3 {[%emt 0:00:01]} 30. Ba5 {[%emt 0:00:23]} c5 {[%emt 0:00:27]} 31. Bf3 {[%emt 0:00:21]} Bxf3 {[%emt 0:03:18]} 32. gxf3 $15 {[%emt 0:00:01] KB-KB} f5 {[%emt 0:00:22]} 33. Kf1 {[%emt 0:00:21]} Kf7 {[%emt 0:00:26]} 34. Ke2 {[%emt 0:00:01]} Ke6 {[%emt 0:00:50]} 35. Kd3 {[%emt 0:03:20]} Kd6 {[%emt 0:00:35]} 36. Bc3 {[%emt 0:00:32]} (36. Kc3 $11) 36... c4+ $17 {[%emt 0:00:32]} 37. Kc2 {[%emt 0:00:34]} g6 {[%emt 0:00:16]} 38. f4 {[%emt 0:02:19]} Kc6 {[%emt 0:00:27]} 39. Bb2 {[%emt 0:03:07]} Be7 {[%emt 0:01:22]} 40. a4 {[%emt 0:00:00] [#]} Bh4 $1 {[%emt 0:00:00]} 41. f3 {[%emt 0:02:23] [#]} Kc5 {[%emt 0:13:12]} (41... Kb6 $1 $17 {[%cal Rb6a5] aiming for ...Ka5.} 42. Bc3 Be7) 42. Ba3+ $15 {[%emt 0:01:05]} Kb6 {[%emt 0:00:04] Threatens to win with ...Ka5.} 43. Bb4 {[%emt 0:00:23]} Bf6 {[%emt 0:05:06]} 44. Kd2 {[%emt 0:00:29]} Kc6 {[%emt 0:02:00]} 45. Kc2 {[%emt 0:04:36]} Bd8 {[%emt 0:00:58]} 46. Kc3 {[%emt 0:00:37][%cal Oe3e4]} Bb6 {[%emt 0:02:00]} (46... g5 $17 47. fxg5 Bxg5) 47. Kd2 {[%emt 0:04:41]} (47. e4 $5) 47... Ba7 {[%emt 0:00:05]} 48. Ke2 {[%emt 0:04:04]} Bc5 {[%emt 0:00:42]} 49. Bc3 {[%emt 0:00:05]} Kb6 {[%emt 0:03:56]} 50. Kd2 {[%emt 0:00:16]} Ka6 {[%emt 0:01:44]} 51. Ke2 {[%emt 0:00:14]} Bb6 {[%emt 0:00:56]} 52. Bb4 {[%emt 0:00:52]} Ba5 {[%emt 0:01:17]} 53. Be7 {[%emt 0:00:03]} Bc3 {[%emt 0:02:24] Strongly threatening ...Ka5.} 54. Bd8 {[%emt 0:00:09]} Ba5 {[%emt 0:01:57]} 55. Be7 {[%emt 0:02:07]} Bc3 {[%emt 0:00:54] White must now prevent ...Ka5.} 56. Bd8 {[%emt 0:00:21]} Ba5 {[%emt 0:00:04] Weighted Error Value: White=0.10 (very precise) /Black=0.10 (very precise)} 1/2-1/2